fUST/lending_fUST_20250621
["ID","MTS","AMOUNT","RATE_DAILY","PERIOD"]
[366779612,1750444851348,601.83995976,0.00019102,2]
[366779613,1750444921423,150.0,0.000189,2]
[366779614,1750444954109,270.17652984,0.00019102,2]
[366779615,1750445042659,288.81150018,0.00019102,2]
[366779616,1750445044675,-187.918352,0.00019153,2]
[366779617,1750445102564,164.79406157,0.00019102,2]
[366779618,1750445134074,151.51287699,0.00019102,2]
[366779619,1750445165411,164.90024098,0.00019102,2]
[366779620,1750445181679,190.84605584,0.00019102,2]
[366779621,1750445222873,215.61186432,0.000189,2]
[366779622,1750445224888,-160.175969,0.00019153,2]
[366779623,1750445252503,150.0,0.000189,2]
[366779624,1750445341690,309.15394416,0.00019102,2]
[366779663,1750445432275,-232.0580848,0.00019153,2]
[366779665,1750445432285,-300.0,0.00019577,2]
[366779668,1750445432295,-290.40527206,0.00019579,2]
[366779670,1750445432304,-460.0,0.00019579,2]
[366779673,1750445432315,-300.0,0.00019744,2]
[366779676,1750445432327,-300.0,0.00019744,2]
[366779679,1750445432339,-300.0,0.00019744,2]
[366779682,1750445432348,-1200.0,0.00019744,2]
[366779685,1750445432357,-14464.14766904,0.00019745,2]
[366779688,1750445432367,-460.0,0.00019851,2]
[366779691,1750445432378,-2477.2,0.00019851,2]
[366779693,1750445432388,-460.0,0.00019851,2]
[366779695,1750445432400,-460.0,0.00019851,2]
[366779697,1750445432410,-460.0,0.00019851,2]
[366779699,1750445432421,-460.0,0.00019851,2]
[366779701,1750445432431,-460.0,0.00019851,2]
[366779703,1750445432441,-460.0,0.00019851,2]
[366779706,1750445432450,-460.0,0.00019851,2]
[366779708,1750445432460,-159.41999682,0.00019851,2]
[366779710,1750445432469,-460.0,0.00019851,2]
[366779712,1750445432479,-420.0,0.00019851,2]
[366779714,1750445432489,-500.0,0.00019851,2]
[366779716,1750445432498,-500.0,0.00019851,2]
[366779718,1750445432508,-500.0,0.00019851,2]
[366779720,1750445432518,-460.0,0.00019853,2]
[366779722,1750445432527,-421.58463103,0.00019865,2]
[366779724,1750445432537,-460.0,0.00020125,2]
[366779726,1750445432547,-2477.2,0.00020125,2]
[366779728,1750445432557,-460.0,0.00020125,2]
[366779730,1750445432567,-460.0,0.00020125,2]
[366779732,1750445432576,-460.0,0.00020125,2]
[366779734,1750445432587,-460.0,0.00020125,2]
[366779736,1750445432598,-460.0,0.00020125,2]
[366779738,1750445432607,-460.0,0.00020125,2]
[366779740,1750445432617,-460.0,0.00020125,2]
[366779742,1750445432627,-460.0,0.00020127,2]
[366779744,1750445432637,-286.061188,0.00020187,2]
[366779746,1750445432647,-421.58463103,0.00020251,2]
[366779748,1750445432657,-421.58463103,0.00020398,2]
[366779750,1750445432666,-460.0,0.00020399,2]
[366779752,1750445432677,-2477.2,0.00020399,2]
[366779754,1750445432686,-460.0,0.00020399,2]
[366779756,1750445432696,-460.0,0.00020399,2]
[366779758,1750445432705,-460.0,0.00020399,2]
[366779760,1750445432715,-460.0,0.00020399,2]
[366779762,1750445432725,-460.0,0.000204,2]
[366779764,1750445432734,-460.0,0.000204,2]
[366779766,1750445432744,-460.0,0.00020401,2]
[366779768,1750445432753,-589.14839872,0.00020499,2]
[366779770,1750445432762,-460.0,0.00020598,2]
[366779772,1750445432772,-460.0,0.00020599,2]
[366779774,1750445432782,-460.0,0.00020599,2]
[366779776,1750445432792,-460.0,0.00020599,2]
[366779778,1750445432801,-460.0,0.00020599,2]
[366779780,1750445432811,-460.0,0.00020599,2]
[366779782,1750445432821,-460.0,0.00020599,2]
[366779784,1750445432830,-230.06456406,0.00020603,2]
[366779786,1750445432840,-160.0,0.00020603,2]
[366779788,1750445432850,-836.27303475,0.00020603,2]
[366779790,1750445432860,-160.0,0.00020603,2]
[366779792,1750445432869,-424.85694595,0.00020603,2]
[366779794,1750445432878,-846.08887863,0.00020604,2]
[366779796,1750445432888,-168.0,0.00020631,2]
[366779798,1750445432897,-160.0,0.00020656,2]
[366779800,1750445432907,-172.48,0.00020656,2]
[366779803,1750445432916,-460.0,0.00020658,2]
[366779804,1750445432925,-463.68,0.00020658,2]
[366779806,1750445432935,-460.0,0.00020658,2]
[366779808,1750445432944,-460.0,0.00020658,2]
[366779810,1750445432954,-460.0,0.00020658,2]
[366779812,1750445432963,-460.0,0.00020658,2]
[366779814,1750445432973,-460.0,0.00020658,2]
[366779816,1750445432982,-460.0,0.00020658,2]
[366779818,1750445432992,-460.0,0.00020658,2]
[366779820,1750445433002,-460.0,0.00020658,2]
[366779822,1750445433011,-460.0,0.00020658,2]
[366779824,1750445433021,-460.0,0.00020658,2]
[366779826,1750445433030,-460.0,0.00020658,2]
[366779828,1750445433040,-460.0,0.00020658,2]
[366779830,1750445433050,-460.0,0.00020658,2]
[366779833,1750445433060,-460.0,0.00020658,2]
[366779834,1750445433070,-460.0,0.00020658,2]
[366779836,1750445433079,-460.0,0.00020658,2]
[366779838,1750445433089,-460.0,0.00020658,2]
[366779840,1750445433098,-24173.73513926,0.0002066,2]
[366779842,1750445433108,-460.0,0.00020673,2]
[366779844,1750445433118,-2477.2,0.00020673,2]
[366779846,1750445433128,-460.0,0.00020673,2]
[366779848,1750445433138,-460.0,0.00020673,2]
[366779850,1750445433148,-460.0,0.00020673,2]
[366779852,1750445433159,-460.0,0.00020673,2]
[366779854,1750445433168,-460.0,0.00020675,2]
[366779856,1750445433180,-520.61644366,0.00020832,2]
[366779858,1750445433189,-5000.0,0.00020834,2]
[366779860,1750445433199,-1688.0,0.00020834,2]
[366779862,1750445433209,-207.4,0.00020834,2]
[366779864,1750445433219,-460.0,0.00020872,2]
[366779866,1750445433229,-460.0,0.00020873,2]
[366779868,1750445433239,-460.0,0.00020873,2]
[366779870,1750445433249,-382.89,0.00020873,2]
[366779872,1750445433259,-460.0,0.00020873,2]
[366779874,1750445433268,-460.0,0.00020873,2]
[366779876,1750445433278,-2110.44,0.00020888,10]
[366779878,1750445433287,-1758.7,0.00020888,10]
[366779880,1750445433297,-1750.456,0.00020889,2]
[366779882,1750445433307,-204.07266654,0.00020898,2]
[366779884,1750445433320,-525.68610873,0.00020898,2]
[366779886,1750445433330,-525.68610873,0.00020898,2]
[366779888,1750445433339,-525.68610873,0.00020898,2]
[366779890,1750445433349,-525.68610873,0.00020898,2]
[366779892,1750445433359,-525.68610873,0.00020898,2]
[366779894,1750445433370,-525.68610873,0.00020898,2]
[366779896,1750445433380,-525.68610873,0.00020898,2]
[366779898,1750445433390,-525.68610873,0.00020898,2]
[366779900,1750445433401,-525.68610873,0.00020898,2]
[366779902,1750445433411,-525.68610873,0.00020898,2]
[366779904,1750445433421,-525.68610873,0.00020898,2]
[366779906,1750445433431,-525.68610873,0.00020898,2]
[366779908,1750445433441,-525.68610873,0.00020898,2]
[366779910,1750445433451,-525.68610873,0.00020898,2]
[366779912,1750445433461,-525.68610873,0.00020898,2]
[366779914,1750445433471,-525.68610873,0.00020898,2]
[366779915,1750445433482,-525.68610873,0.00020898,2]
[366779916,1750445433491,-525.68610873,0.00020898,2]
[366779918,1750445433501,-525.68610873,0.00020898,2]
[366779920,1750445433511,-525.68610873,0.00020898,2]
[366779921,1750445433522,-525.68610873,0.00020898,2]
[366779922,1750445433533,-567.74099742,0.00020898,2]
[366779923,1750445433543,-567.74099742,0.00020898,2]
[366779924,1750445433553,-567.74099742,0.00020898,2]
[366779925,1750445433563,-567.74099742,0.00020898,2]
[366779926,1750445433573,-567.74099742,0.00020898,2]
[366779927,1750445433583,-567.74099742,0.00020898,2]
[366779928,1750445433594,-567.74099742,0.00020898,2]
[366779929,1750445433735,-567.74099742,0.00020898,2]
[366779930,1750445433748,-567.74099742,0.00020898,2]
[366779931,1750445433759,-567.74099742,0.00020898,2]
[366779932,1750445433770,-500.0,0.000209,2]
[366779933,1750445433780,-536.3578684,0.000209,2]
[366779934,1750445433790,-35856.1835143,0.000209,5]
[366779935,1750445433799,-460.0,0.00020932,2]
[366779936,1750445433809,-463.68,0.00020932,2]
[366779937,1750445433819,-460.0,0.00020932,2]
[366779938,1750445433829,-460.0,0.00020932,2]
[366779939,1750445433839,-460.0,0.00020932,2]
[366779940,1750445433849,-460.0,0.00020932,2]
[366779941,1750445433859,-460.0,0.00020932,2]
[366779942,1750445433868,-460.0,0.00020932,2]
[366779943,1750445433880,-460.0,0.00020932,2]
[366779944,1750445433891,-460.0,0.00020932,2]
[366779945,1750445433901,-506.44470609,0.00020932,2]
[366779946,1750445433912,-460.0,0.00020932,2]
[366779947,1750445433922,-460.0,0.00020932,2]
[366779948,1750445433932,-1815.222872,0.00020944,2]
[366779949,1750445433942,-460.0,0.00020947,2]
[366779950,1750445433952,-2477.2,0.00020947,2]
[366779951,1750445433962,-460.0,0.00020947,2]
[366779952,1750445433972,-460.0,0.00020947,2]
[366779953,1750445433982,-460.0,0.00020947,2]
[366779954,1750445433992,-460.0,0.00020947,2]
[366779955,1750445434001,-166.50454353,0.00020999,2]
[366779956,1750445434011,-3120.52447934,0.000211,2]
[366779957,1750445434020,-4812.75164614,0.000211,2]
[366779958,1750445434031,-1111.85583634,0.000211,4]
[366779959,1750445434040,-1111.85583612,0.000211,4]
[366779960,1750445434050,-589.14839868,0.00021133,2]
[366779961,1750445434059,-460.0,0.00021146,2]
[366779962,1750445434070,-460.0,0.00021147,2]
[366779963,1750445434081,-500.0,0.0002115,2]
[366779964,1750445434090,-500.0,0.0002115,2]
[366779965,1750445434100,-460.0,0.00021206,2]
[366779966,1750445434109,-463.68,0.00021206,2]
[366779967,1750445434119,-460.0,0.00021206,2]
[366779968,1750445434129,-460.0,0.00021206,2]
[366779969,1750445434139,-460.0,0.00021206,2]
[366779970,1750445434150,-460.0,0.00021206,2]
[366779971,1750445434160,-460.0,0.00021206,2]
[366779972,1750445434169,-460.0,0.00021206,2]
[366779973,1750445434179,-460.0,0.00021206,2]
[366779974,1750445434189,-460.0,0.00021206,2]
[366779975,1750445434199,-460.0,0.00021221,2]
[366779976,1750445434208,-2477.2,0.00021221,2]
[366779977,1750445434218,-460.0,0.00021221,2]
[366779978,1750445434228,-460.0,0.00021221,2]
[366779979,1750445434238,-460.0,0.00021221,2]
[366779980,1750445434247,-460.0,0.00021221,2]
[366779981,1750445434258,-1111.85583612,0.00021245,4]
[366779982,1750445434268,-420.0,0.00021326,2]
[366779983,1750445434278,-31.72244232,0.00021349,2]
[366779984,1750445434293,-488.89400133,0.00021349,2]
[366779985,1750445434302,-1111.85583612,0.00021417,5]
[366779986,1750445434312,-460.0,0.0002142,2]
[366779987,1750445434324,-480.15,0.00021421,2]
[366779988,1750445434334,-460.0,0.0002148,2]
[366779989,1750445434344,-463.68,0.0002148,2]
[366779990,1750445434354,-460.0,0.0002148,2]
[366779991,1750445434364,-460.0,0.0002148,2]
[366779992,1750445434374,-413.86,0.0002148,2]
[366779993,1750445434383,-460.0,0.0002148,2]
[366779994,1750445434394,-460.0,0.0002148,2]
[366779995,1750445434404,-460.0,0.0002148,2]
[366779996,1750445434415,-460.0,0.0002148,2]
[366779997,1750445434425,-77.63742121,0.00021495,2]
[366779998,1750445434437,-382.36257879,0.00021495,2]
[366779999,1750445434447,-2477.2,0.00021495,2]
[366780000,1750445434458,-336.49646164,0.00021495,2]
[366780001,1750445434469,-460.0,0.00021495,2]
[366780002,1750445434479,-460.0,0.00021495,2]
[366780003,1750445434490,-460.0,0.00021495,2]
[366780004,1750445434500,-887.61266989,0.000215,2]
[366780005,1750445434511,-340.0,0.00021505,2]
[366780006,1750445434522,-420.0,0.00021505,2]
[366780007,1750445434532,-168.0,0.00021578,2]
[366780008,1750445434543,-1111.85583612,0.0002159,5]
[366780009,1750445434553,-1680.0,0.00021608,2]
[366780010,1750445434563,-34039.21583599,0.0002166,2]
[366780011,1750445434574,-151.0,0.0002166,2]
[366780012,1750445434585,-151.0,0.0002166,2]
[366780013,1750445434596,-151.0,0.0002166,2]
[366780014,1750445434606,-151.0,0.0002166,2]
[366780015,1750445434616,-151.0,0.0002166,2]
[366780016,1750445434626,-364.0,0.00021694,2]
[366780017,1750445434637,-151.0,0.00021745,2]
[366780018,1750445434646,-377.71033614,0.00021754,2]
[366780019,1750445434656,-463.68,0.00021754,2]
[366780020,1750445434667,-460.0,0.00021754,2]
[366780021,1750445434677,-460.0,0.00021754,2]
[366780022,1750445434687,-442.40985889,0.00021754,2]
[366780141,1750445612682,1000.0,0.00024657,120]
[366780142,1750445628953,-249.45,0.00019364,2]
[366780144,1750445715625,-180.27555046,0.00019178,2]
[366780145,1750445725486,281.914902,0.00013699,2]
[366780147,1750445788249,-23.42180684,0.00019178,2]
[366780148,1750445788273,-136.57819316,0.00019236,2]
[366780149,1750445814327,1159.21836837,0.00019102,2]
[366780150,1750445912366,-218.35160481,0.00019236,2]
[366780151,1750445944266,-159.99797474,0.00019236,2]
[366780152,1750446002952,-205.07040764,0.00019236,2]
[366780153,1750446005694,433.18177542,0.00019102,2]
[366780154,1750446006609,-168.03110711,0.00019236,2]
[366780155,1750446014507,-155.66251111,0.00019236,2]
[366780156,1750446022601,-197.97,0.00019236,2]
[366780157,1750446041405,-183.41811946,0.00019236,2]
[366780158,1750446060228,-188.23937203,0.00019236,2]
[366780159,1750446063594,-197.69879216,0.00019236,2]
[366780160,1750446087916,-106.11282598,0.00019236,2]
[366780161,1750446087940,-73.28731122,0.00019259,2]
[366780162,1750446108358,-226.71268878,0.00019259,2]
[366780163,1750446108381,-42.81463436,0.00019259,2]
[366780164,1750446112024,-211.00306773,0.00019259,2]
[366780165,1750446118591,-46.18229791,0.00019259,2]
[366780166,1750446118617,-274.54194969,0.0001926,2]
[366780167,1750446123160,-167.3465586,0.00019259,2]
[366780168,1750446129357,-132.6534414,0.00019259,2]
[366780169,1750446129380,-54.07512707,0.0001926,2]
[366780170,1750446129923,-32.48813,0.0001926,2]
[366780171,1750446129949,-154.24043847,0.0001926,2]
[366780172,1750446153034,-192.90798617,0.0001926,2]
[366780173,1750446163182,-154.02278158,0.0001926,2]
[366780174,1750446183521,-251.41184371,0.00019259,2]
[366780175,1750446188507,-48.58815629,0.00019259,2]
[366780176,1750446188533,-48.3656052,0.0001926,2]
[366780177,1750446188558,-70.79848954,0.0001926,2]
[366780178,1750446196111,-359.0,0.0001926,2]
[366780179,1750446244934,-214.07362194,0.00019179,2]
[366780181,1750446269671,-240.82252222,0.00019179,2]
[366780182,1750446286971,503.7368265,0.00023,30]
[366780183,1750446303431,-86.50450124,0.00019179,2]
[366780184,1750446303458,-70.49549876,0.00019259,2]
[366780186,1750446329937,-219.63599433,0.00019259,2]
[366780187,1750446332351,-9.86850691,0.00019259,2]
[366780188,1750446332385,-168.87291851,0.00019259,2]
[366780189,1750446339990,-131.12708149,0.00019259,2]
[366780190,1750446340019,-40.46252396,0.00019259,2]
[366780191,1750446342178,178.74142542,0.00019102,2]
[366780192,1750446342761,-166.0273955,0.00019259,2]
[366780194,1750446351798,250.0,0.00019057,2]
[366780196,1750446359893,-300.0,0.00019259,2]
[366780198,1750446364410,-236.03405117,0.00019259,2]
[366780199,1750446366815,-150.0,0.00019259,2]
[366780201,1750446373490,-168.25984059,0.00019259,2]
[366780202,1750446378295,-160.7540394,0.0001916,2]
[366780207,1750446598610,-10.83556605,0.0001916,2]
[366780208,1750446598635,-149.16443395,0.00019241,2]
[366780232,1750446632464,-70.47156038,0.00019241,2]
[366780233,1750446632474,-300.0,0.00019259,2]
[366780234,1750446632484,-279.0,0.00019259,2]
[366780235,1750446632495,-300.0,0.00019259,2]
[366780236,1750446632505,-1200.0,0.00019259,2]
[366780237,1750446632515,-70.20151046,0.0001926,2]
[366780238,1750446632524,-500.0,0.0001926,2]
[366780239,1750446632534,-500.0,0.0001926,2]
[366780240,1750446632544,-216.00878727,0.0001926,2]
[366780241,1750446632554,-154.02278158,0.0001926,2]
[366780242,1750446632564,-409.625969,0.0001926,2]
[366780243,1750446632573,-180.27555046,0.0001926,2]
[366780244,1750446632583,-319.99797474,0.0001926,2]
[366780245,1750446632593,-373.10151475,0.0001926,2]
[366780246,1750446632602,-460.0,0.0001926,2]
[366780247,1750446632612,-460.0,0.0001926,2]
[366780248,1750446632622,-460.0,0.0001926,2]
[366780249,1750446632632,-460.0,0.0001926,2]
[366780250,1750446632642,-460.0,0.0001926,2]
[366780251,1750446632656,-460.0,0.0001926,2]
[366780252,1750446632666,-460.0,0.0001926,2]
[366780253,1750446632676,-460.0,0.0001926,2]
[366780254,1750446632686,-460.0,0.0001926,2]
[366780255,1750446632696,-460.0,0.0001926,2]
[366780256,1750446632706,-460.0,0.0001926,2]
[366780257,1750446632716,-1754.69,0.0001926,2]
[366780258,1750446632727,-460.0,0.0001926,2]
[366780259,1750446632738,-300.0,0.0001926,2]
[366780260,1750446632749,-460.0,0.0001926,2]
[366780261,1750446632759,-460.0,0.0001926,2]
[366780262,1750446632768,-192.90798617,0.0001926,2]
[366780263,1750446632778,-460.0,0.0001926,2]
[366780264,1750446632787,-460.0,0.0001926,2]
[366780265,1750446632797,-554.82,0.0001926,2]
[366780266,1750446632806,-386.03405117,0.0001926,2]
[366780267,1750446632816,-24900.0,0.00019261,2]
[366780268,1750446632826,-473.72556476,0.000193,2]
[366780269,1750446632836,-293.0281551,0.000194,2]
[366780270,1750446632847,-400.0,0.00019534,2]
[366780271,1750446632856,-460.0,0.00019534,2]
[366780272,1750446632868,-460.0,0.00019534,2]
[366780273,1750446632878,-460.0,0.00019534,2]
[366780274,1750446632888,-460.0,0.00019534,2]
[366780275,1750446632898,-460.0,0.00019534,2]
[366780276,1750446632908,-460.0,0.00019534,2]
[366780277,1750446632918,-460.0,0.00019534,2]
[366780278,1750446632928,-460.0,0.00019534,2]
[366780279,1750446632937,-460.0,0.00019534,2]
[366780280,1750446632948,-460.0,0.00019534,2]
[366780281,1750446632958,-1754.69,0.00019534,2]
[366780282,1750446632968,-460.0,0.00019534,2]
[366780283,1750446632978,-460.0,0.00019534,2]
[366780284,1750446632988,-460.0,0.00019534,2]
[366780285,1750446632998,-460.0,0.00019534,2]
[366780286,1750446633008,-460.0,0.00019534,2]
[366780287,1750446633018,-554.82,0.00019534,2]
[366780288,1750446633028,-460.0,0.00019808,2]
[366780289,1750446633038,-460.0,0.00019808,2]
[366780290,1750446633048,-460.0,0.00019808,2]
[366780291,1750446633058,-460.0,0.00019808,2]
[366780292,1750446633068,-460.0,0.00019808,2]
[366780293,1750446633078,-460.0,0.00019808,2]
[366780294,1750446633088,-460.0,0.00019808,2]
[366780295,1750446633097,-460.0,0.00019808,2]
[366780296,1750446633107,-1754.69,0.00019808,2]
[366780297,1750446633119,-460.0,0.00019808,2]
[366780298,1750446633128,-460.0,0.00019808,2]
[366780299,1750446633138,-460.0,0.00019808,2]
[366780300,1750446633148,-460.0,0.00019808,2]
[366780301,1750446633159,-460.0,0.00019808,2]
[366780302,1750446633169,-554.82,0.00019808,2]
[366780303,1750446633179,-1000.0,0.00019851,2]
[366780304,1750446633190,-1290.68018253,0.00020071,2]
[366780305,1750446633200,-460.0,0.00020082,2]
[366780306,1750446633210,-460.0,0.00020082,2]
[366780307,1750446633220,-460.0,0.00020082,2]
[366780308,1750446633231,-460.0,0.00020082,2]
[366780309,1750446633240,-460.0,0.00020082,2]
[366780310,1750446633250,-460.0,0.00020082,2]
[366780311,1750446633260,-460.0,0.00020082,2]
[366780312,1750446633270,-460.0,0.00020082,2]
[366780313,1750446633280,-1754.69,0.00020082,2]
[366780314,1750446633290,-460.0,0.00020082,2]
[366780315,1750446633301,-460.0,0.00020082,2]
[366780316,1750446633310,-460.0,0.00020082,2]
[366780317,1750446633320,-460.0,0.00020082,2]
[366780318,1750446633331,-460.0,0.00020082,2]
[366780319,1750446633341,-554.82,0.00020082,2]
[366780320,1750446633352,-473.72556469,0.00020106,2]
[366780321,1750446633365,-151.0,0.00020164,2]
[366780322,1750446633376,-151.0,0.00020164,2]
[366780323,1750446633386,-281.914902,0.00020187,2]
[366780324,1750446633397,-460.0,0.00020356,2]
[366780325,1750446633408,-460.0,0.00020356,2]
[366780326,1750446633417,-460.0,0.00020356,2]
[366780327,1750446633428,-460.0,0.00020356,2]
[366780328,1750446633438,-491.74,0.00020356,2]
[366780329,1750446633448,-460.0,0.00020356,2]
[366780330,1750446633458,-460.0,0.00020356,2]
[366780331,1750446633468,-232.66014111,0.00020356,2]
[366780332,1750446633478,-1754.69,0.00020356,2]
[366780333,1750446633488,-460.0,0.00020356,2]
[366780334,1750446633500,-460.0,0.00020356,2]
[366780335,1750446633510,-460.0,0.00020356,2]
[366780336,1750446633522,-460.0,0.00020356,2]
[366780337,1750446633533,-554.82,0.00020356,2]
[366780338,1750446633543,-460.0,0.00020397,2]
[366780339,1750446633554,-500.0,0.00020414,2]
[366780340,1750446633564,-512.830546,0.00020414,2]
[366780341,1750446633575,-596.98801157,0.00020414,2]
[366780342,1750446633585,-500.0,0.00020438,2]
[366780343,1750446633594,-500.0,0.00020519,2]
[366780344,1750446633604,-172.481,0.00020536,2]
[366780345,1750446633617,-500.0,0.00020559,2]
[366780346,1750446633628,-361.93318931,0.00020559,2]
[366780347,1750446633638,-500.0,0.00020559,2]
[366780348,1750446633650,-500.0,0.00020559,2]
[366780349,1750446633665,-500.0,0.00020559,2]
[366780350,1750446633674,-500.0,0.00020559,2]
[366780351,1750446633685,-500.0,0.00020559,2]
[366780352,1750446633696,-500.0,0.00020559,2]
[366780353,1750446633707,-500.0,0.00020559,2]
[366780354,1750446633717,-500.0,0.00020559,2]
[366780355,1750446633728,-500.0,0.00020559,2]
[366780356,1750446633738,-500.0,0.00020559,2]
[366780357,1750446633747,-500.0,0.00020559,2]
[366780358,1750446633758,-500.0,0.00020559,2]
[366780359,1750446633768,-500.0,0.00020559,2]
[366780360,1750446633777,-500.0,0.00020559,2]
[366780361,1750446633787,-614.77024189,0.00020559,2]
[366780362,1750446633798,-500.0,0.00020559,2]
[366780363,1750446633808,-500.0,0.00020559,2]
[366780364,1750446633818,-500.0,0.00020559,2]
[366780365,1750446633830,-500.0,0.00020559,2]
[366780366,1750446633840,-500.0,0.00020559,2]
[366780367,1750446633851,-600.0,0.00020559,2]
[366780368,1750446633861,-500.0,0.0002056,2]
[366780369,1750446633872,-500.0,0.0002056,2]
[366780370,1750446633883,-500.0,0.0002056,2]
[366780371,1750446633893,-460.0,0.00020598,2]
[366780372,1750446633904,-153.51658329,0.00020602,2]
[366780373,1750446633914,-1465.58,0.00020608,10]
[366780374,1750446633924,-1221.32,0.00020608,10]
[366780375,1750446633935,-1017.76,0.00020608,10]
[366780376,1750446633946,-12546.90244252,0.00020618,2]
[366780377,1750446633956,-213.51557418,0.00020618,2]
[366780378,1750446633967,-160.0,0.00020618,2]
[366780379,1750446633977,-160.0,0.00020619,2]
[366780380,1750446633987,-836.27303475,0.00020619,2]
[366780381,1750446633997,-424.85694595,0.00020619,2]
[366780382,1750446634007,-846.08887863,0.00020624,2]
[366780383,1750446634017,-460.0,0.0002063,2]
[366780384,1750446634027,-460.0,0.0002063,2]
[366780385,1750446634037,-460.0,0.0002063,2]
[366780386,1750446634048,-460.0,0.0002063,2]
[366780387,1750446634059,-460.0,0.0002063,2]
[366780388,1750446634069,-1754.69,0.0002063,2]
[366780389,1750446634080,-460.0,0.0002063,2]
[366780390,1750446634089,-460.0,0.0002063,2]
[366780391,1750446634100,-460.0,0.0002063,2]
[366780392,1750446634109,-460.0,0.0002063,2]
[366780393,1750446634120,-554.82,0.0002063,2]
[366780394,1750446634130,-290.32813888,0.00020657,2]
[366780395,1750446634141,-500.0,0.00020658,2]
[366780396,1750446634151,-460.0,0.00020671,2]
[366780397,1750446634162,-2016.84,0.000207,2]
[366780398,1750446634172,-306.0,0.00020826,2]
[366780399,1750446634183,-153.0,0.00020826,2]
[366780400,1750446634192,-153.0,0.00020826,2]
[366780401,1750446634202,-153.0,0.00020826,2]
[366780402,1750446634212,-607.28087103,0.00020846,2]
[366780403,1750446634222,-230.06456406,0.00020854,2]
[366780404,1750446634232,-460.0,0.00020872,2]
[366780405,1750446634242,-500.0,0.00020892,2]
[366780406,1750446634251,-33.19681744,0.00020892,2]
[366780407,1750446634266,-210.17263902,0.00020892,2]
[366780408,1750446634276,-425.5240974,0.000209,2]
[366780409,1750446634286,-460.0,0.00020904,2]
[366780410,1750446634295,-460.0,0.00020904,2]
[366780411,1750446634305,-460.0,0.00020904,2]
[366780412,1750446634315,-460.0,0.00020904,2]
[366780413,1750446634324,-460.0,0.00020904,2]
[366780414,1750446634334,-1754.69,0.00020904,2]
[366780415,1750446634343,-460.0,0.00020904,2]
[366780416,1750446634353,-460.0,0.00020904,2]
[366780417,1750446634362,-460.0,0.00020904,2]
[366780418,1750446634372,-460.0,0.00020904,2]
[366780419,1750446634382,-473.72556469,0.00020913,2]
[366780420,1750446634391,-460.0,0.00020945,2]
[366780421,1750446634401,-160.0,0.00020969,2]
[366780422,1750446634411,-500.0,0.00020986,2]
[366780423,1750446634422,-420.0,0.00020987,2]
[366780424,1750446634432,-426.1728308,0.00020999,2]
[366780425,1750446634442,-463.0,0.00021061,2]
[366780426,1750446634451,-1688.0,0.00021066,2]
[366780427,1750446634461,-5000.0,0.00021066,2]
[366780428,1750446634470,-500.0,0.00021066,2]
[366780429,1750446634481,-500.0,0.00021066,2]
[366780430,1750446634491,-500.0,0.00021066,2]
[366780431,1750446634500,-500.0,0.00021066,2]
[366780432,1750446634512,-514.63180266,0.00021066,2]
[366780433,1750446634523,-500.0,0.00021066,2]
[366780434,1750446634534,-500.0,0.00021066,2]